bitfinex/quotes_SOLUSD_20251001
["timestamp","ask_amount","ask_price","bid_price","bid_amount"]
[1759362958513,33.6,221.77,221.7,0.68]
[1759362958729,33.6,221.77,221.69,10.87647521]
[1759362959140,33.6,221.77,221.68,21.48]
[1759362959344,38.10921561,221.77,221.68,25.99098361]
[1759362959636,0.66,221.76,221.68,25.99098361]
[1759362959824,5.16939046,221.76,221.68,25.99098361]
[1759362960024,38.08939046,221.76,221.68,25.99098361]
[1759362960636,0.66,221.75,221.66,11.55647521]
[1759362960838,0.66,221.74,221.66,11.55647521]
[1759362961021,0.66,221.73,221.64,10.87647521]
[1759362961225,32.9,221.73,221.66,10.87647521]
[1759362961451,32.9,221.75,221.68,10.87647521]
[1759362961630,33.56,221.76,221.68,11.55647521]
[1759362961835,33.56,221.76,221.69,4.51080337]
[1759362962035,0.66,221.76,221.69,4.51080337]
[1759362962344,7.64489084,221.8,221.71,10.87647521]
[1759362962546,40.54489084,221.8,221.72,0.68]
[1759362963042,41.20489084,221.8,221.72,0.68]
[1759362963842,45.71345785,221.8,221.72,4.51019303]
[1759362964144,0.66,221.79,221.72,4.51019303]
[1759362964544,0.66,221.79,221.73,10.87647521]
[1759362964722,7.64489084,221.8,221.74,0.68]
[1759362966153,4.50720464,221.87,221.76,10.87647521]
[1759362966331,0.66,221.85,221.76,11.55647521]
[1759362966727,32.88,221.87,221.78,10.87647521]
[1759362966936,0.66,221.87,221.79,0.68]
[1759362967138,33.56,221.87,221.79,0.68]
[1759362967335,32.9,221.87,221.8,10.87647521]
[1759362967540,32.9,221.88,221.8,10.87647521]
[1759362967736,33.56,221.88,221.8,10.87647521]
[1759362967926,33.56,221.88,221.81,4.50836301]
[1759362968532,33.56,221.88,221.81,15.77927054]
[1759362968737,0.02496359,221.89,221.82,11.55647521]
[1759362969427,0.68496359,221.89,221.82,11.55647521]
[1759362969852,0.68496359,221.89,221.82,0.68]
[1759362970050,0.68496359,221.89,221.83,4.50795654]
[1759362970764,0.68496359,221.89,221.81,32.07090753]
[1759362970765,0.66,221.88,221.81,20.8]
[1759362970952,0.66,221.88,221.81,25.30834198]
[1759362971259,0.66,221.88,221.81,36.57924951]
[1759362971557,33.52,221.88,221.81,36.57924951]
[1759362972055,33.52,221.88,221.85,5.31516051]
[1759362972254,0.66,221.87,221.86,5.31516051]
[1759362972438,0.66,221.87,221.85,5.31516051]
[1759362973551,0.02496359,221.89,221.81,4.50834198]
[1759362973763,0.66,221.87,221.85,5.31516051]
[1759362973972,0.02496359,221.89,221.86,5.31516051]
[1759362974134,32.82,221.88,221.87,5.31516051]
[1759362974529,33.48,221.88,221.87,5.31516051]
[1759362974964,0.66,221.88,221.87,18.9204331]
[1759362975265,33.48,221.88,221.87,5.31516051]
[1759362975453,0.66,221.88,221.87,5.31516051]
[1759362975757,33.48,221.88,221.87,5.31516051]
[1759362976062,0.66,221.88,221.87,5.31516051]
[1759362976265,0.02496359,221.89,221.87,5.31516051]
[1759362976567,0.02496359,221.89,221.88,5.31516051]
[1759362976744,0.68496359,221.89,221.85,4.50755014]
[1759362977065,0.66,221.88,221.8,4.50847624]
[1759362977229,0.66,221.88,221.85,5.31516051]
[1759362977435,33.56,221.87,221.84,5.31516051]
[1759362977635,0.66,221.86,221.84,5.31516051]
[1759362977859,32.9,221.86,221.84,5.31516051]
[1759362978060,0.66,221.85,221.81,4.50822199]
[1759362978264,0.66,221.84,221.79,4.50858126]
[1759362978565,32.9,221.84,221.83,5.31516051]
[1759362978738,0.66,221.87,221.83,5.31516051]
[1759362978932,0.66,221.87,221.8,0.68]
[1759362978933,32.9,221.86,221.8,0.68]
[1759362979168,32.9,221.88,221.85,5.31516051]
[1759362979371,32.9,221.88,221.79,36.58050515]
[1759362979671,33.58496359,221.89,221.84,4.50765579]
[1759362979830,0.66,221.88,221.84,4.50765579]
[1759362980034,32.92496359,221.89,221.86,5.31516051]
[1759362980233,0.66,221.88,221.82,4.50807624]
[1759362980438,33.54,221.88,221.84,5.31516051]
[1759362980669,0.66,221.87,221.85,5.31516051]
[1759362980974,32.90496359,221.89,221.86,5.31516051]
[1759362981154,32.90496359,221.89,221.87,5.31516051]
[1759362981360,0.02496359,221.89,221.88,5.31516051]
[1759362981532,0.68496359,221.89,221.86,5.31516051]
[1759362981737,0.68496359,221.89,221.86,4.50718796]
[1759362981941,0.66,221.88,221.85,4.50753372]
[1759362982251,0.02496359,221.89,221.87,5.31516051]
[1759362982456,33.56496359,221.89,221.87,5.31516051]
[1759362982749,33.56496359,221.89,221.85,4.50753372]
[1759362982750,0.66,221.88,221.86,5.31516051]
[1759362983546,32.90496359,221.89,221.86,5.31516051]
[1759362983747,33.57496359,221.89,221.87,5.31516051]
[1759362984152,33.53496359,221.89,221.86,9.82234165]
[1759362984467,0.67,221.88,221.85,9.82260461]
[1759362984651,0.67,221.88,221.86,5.31516051]
[1759362985051,0.67,221.88,221.85,5.31516051]
[1759362985247,0.67,221.88,221.83,4.50779007]
[1759362985444,0.67,221.88,221.86,5.31516051]
[1759362985858,32.82,221.88,221.87,5.31516051]
[1759362986061,33.49,221.88,221.86,5.31516051]
[1759362986256,32.82,221.88,221.86,5.31516051]
[1759362986459,32.82,221.88,221.87,5.31516051]
[1759362988241,0.02496359,221.89,221.87,5.31516051]
[1759362988447,0.67,221.88,221.83,15.77784789]
[1759362988653,0.67,221.88,221.87,5.31516051]
[1759362989874,0.67,221.88,221.86,5.31516051]
[1759362990252,0.67,221.88,221.86,2.14628166]
[1759362990452,0.67,221.87,221.85,4.50741364]
[1759362990665,33.43,221.86,221.82,4.50815976]
[1759362990994,0.67,221.85,221.8,2.14628166]
[1759362991155,34.90628166,221.86,221.79,2.14628166]
[1759362991156,0.67,221.84,221.79,2.14628166]
[1759362991350,33.41,221.83,221.79,2.14628166]
[1759362991558,2.14628166,221.81,221.71,5.17039646]
[1759362991776,33.41,221.8,221.75,2.14628166]
[1759362992081,0.67,221.79,221.75,6.65579836]
[1759362992290,0.67,221.78,221.76,2.14628166]
[1759362992493,32.76,221.77,221.76,2.14628166]
[1759362992678,7.86625201,221.85,221.76,18.46852516]
[1759362992877,7.86625201,221.85,221.84,2.14628166]
[1759362994174,7.86625201,221.85,221.84,6.65403499]
[1759362994479,8.53625201,221.85,221.83,1.37374374]
[1759362994678,0.67,221.84,221.83,1.37374374]
[1759362994986,0.67,221.84,221.81,1.37374374]
[1759362995297,0.67,221.84,221.76,19.08991527]
[1759362995298,33.47,221.83,221.76,18.10415732]
[1759362995485,0.67,221.82,221.76,13.59494031]
[1759362995687,0.67,221.81,221.72,15.78559302]
[1759362996014,0.67,221.81,221.75,1.37374374]
[1759362996015,33.49,221.8,221.75,1.37374374]
[1759362996188,0.67,221.79,221.74,1.37374374]
[1759362996408,2.04374374,221.78,221.74,13.49147257]
[1759362996703,4.50879377,221.79,221.68,1.37374374]
[1759362996704,1.37374374,221.75,221.68,1.37374374]
[1759362996903,0.28432314,221.76,221.68,1.37374374]
[1759362996904,34.84374374,221.74,221.68,1.37374374]
[1759362997076,0.67,221.73,221.69,1.37374374]
[1759362997280,0.67,221.72,221.66,4.51141387]
[1759362997601,0.67,221.71,221.66,17.84397499]
[1759362997900,33.49,221.7,221.66,4.51141387]
[1759362998107,33.49,221.7,221.68,1.37374374]
[1759362998270,33.49,221.7,221.66,4.51141387]
[1759362998271,32.82,221.7,221.69,3.38739768]
[1759362998473,0.67,221.73,221.69,3.38739768]
[1759362998671,33.49,221.72,221.66,4.51141387]
[1759362998904,33.47,221.71,221.66,4.51141387]
[1759362999198,0.67,221.7,221.69,3.38739768]
[1759362999399,0.67,221.75,221.69,3.38739768]
[1759362999611,0.67,221.75,221.73,3.38739768]
[1759362999612,32.82,221.74,221.73,3.38739768]
[1759362999774,33.49,221.74,221.73,3.38739768]
[1759362999972,33.49,221.74,221.69,3.38739768]
[1759363000192,0.67,221.73,221.69,3.38739768]
[1759363000392,33.49,221.72,221.7,3.38739768]
[1759363000585,0.67,221.74,221.71,3.38739768]
[1759363000786,32.82,221.73,221.71,3.38739768]
[1759363001003,0.67,221.72,221.67,4.51121035]
[1759363001186,0.67,221.71,221.68,3.38739768]
[1759363001500,33.49,221.73,221.7,3.38739768]
[1759363001699,32.82,221.73,221.67,4.51121035]
[1759363001906,0.67,221.72,221.67,4.51121035]
[1759363002600,0.67,221.72,221.69,20.8]
[1759363002984,32.82,221.73,221.69,20.8]
[1759363003297,0.67,221.71,221.69,20.8]
[1759363003877,0.67,221.71,221.67,4.51121035]
[1759363003878,0.67,221.71,221.68,4.51096763]
[1759363004285,0.67,221.7,221.66,25.31127046]
[1759363005389,0.67,221.7,221.66,39.09998113]
[1759363006201,0.67,221.7,221.66,50.37851582]
[1759363006402,33.43,221.73,221.66,51.03851582]
[1759363006591,32.76,221.72,221.66,51.03851582]
[1759363006992,32.76,221.72,221.67,0.66]
[1759363007187,32.76,221.72,221.68,0.66]
[1759363007389,32.76,221.73,221.68,0.66]
[1759363007997,32.76,221.73,221.69,4.51080337]
[1759363008206,0.67,221.72,221.69,4.51080337]
[1759363008410,32.76,221.73,221.69,4.51080337]
[1759363008578,0.67,221.71,221.69,4.51080337]
[1759363009399,32.76,221.71,221.69,4.51080337]
[1759363009603,32.76,221.71,221.67,4.51121035]
[1759363009802,0.67,221.7,221.67,4.51121035]
[1759363010004,3.3867957,221.74,221.67,4.51121035]
[1759363010195,0.67,221.72,221.67,4.51121035]
[1759363010389,0.67,221.71,221.67,4.51121035]
[1759363010604,0.67,221.7,221.67,4.51121035]
[1759363010804,0.67,221.69,221.67,4.51121035]
[1759363011193,0.67,221.75,221.68,0.66]
[1759363011396,32.76,221.75,221.68,0.66]
[1759363011599,33.43,221.75,221.67,15.78923624]
[1759363011902,33.43,221.75,221.67,16.44923624]
[1759363012496,32.76,221.74,221.67,16.44923624]
[1759363012696,0.67,221.75,221.67,16.44923624]
[1759363012888,33.43,221.75,221.67,16.44923624]
[1759363013502,0.67,221.75,221.67,16.44923624]
[1759363013715,33.43,221.75,221.67,16.44923624]
[1759363014112,32.74,221.74,221.67,16.44923624]
[1759363015004,0.71,221.78,221.68,0.65]
[1759363015311,33.45,221.78,221.7,20.8]
[1759363015610,33.45,221.78,221.71,0.65]
[1759363015991,0.71,221.78,221.71,0.65]
[1759363016196,33.43,221.78,221.72,15.78567562]
[1759363018303,1.37471203,221.84,221.72,15.78567562]
[1759363018498,0.71,221.8,221.73,0.65]
[1759363018708,0.71,221.8,221.72,15.78567562]
[1759363019010,0.71,221.79,221.72,15.78567562]
[1759363020408,0.71,221.78,221.72,15.78567562]
[1759363020594,0.71,221.77,221.72,15.78567562]
[1759363020911,0.71,221.76,221.72,4.51019303]
[1759363021215,0.71,221.75,221.7,4.51045816]
[1759363021419,0.71,221.74,221.7,4.51045816]
[1759363021714,0.71,221.77,221.7,15.78695793]
[1759363021913,0.71,221.77,221.71,0.65]
[1759363022418,0.71,221.77,221.69,0.65]
[1759363022801,0.71,221.82,221.7,20.8]
[1759363023119,0.71,221.82,221.72,20.8]
[1759363023314,0.71,221.82,221.73,0.65]
[1759363024023,0.71,221.82,221.74,15.78425182]
[1759363024410,0.71,221.81,221.74,15.78425182]
[1759363025215,32.7,221.83,221.74,15.78425182]
[1759363025417,0.71,221.8,221.74,15.78425182]
[1759363025623,0.71,221.79,221.74,15.78425182]
[1759363025809,0.71,221.82,221.74,15.78425182]
[1759363026008,0.71,221.82,221.75,0.65]
[1759363026317,33.37,221.82,221.75,0.65]
[1759363026518,33.37,221.82,221.74,15.78425182]
[1759363026812,0.71,221.81,221.74,15.78425182]
[1759363028121,0.71,221.8,221.74,15.78425182]
[1759363029400,32.66,221.82,221.74,15.78425182]
[1759363029722,33.37,221.82,221.74,16.43425182]
[1759363029924,0.71,221.81,221.74,16.43425182]
[1759363030419,32.62,221.83,221.75,0.65]
[1759363030627,33.33,221.83,221.75,0.65]
[1759363031208,7.86625201,221.85,221.75,0.65]
[1759363031514,32.6,221.84,221.75,0.65]
[1759363031821,33.31,221.84,221.75,0.65]
[1759363032010,33.31,221.84,221.76,15.78282827]
[1759363032206,33.31,221.84,221.77,0.65]
[1759363032529,33.31,221.84,221.76,15.78282827]
[1759363032707,0.71,221.83,221.76,15.78282827]
[1759363033314,7.86625201,221.85,221.77,0.65]
[1759363034019,7.86625201,221.85,221.79,20.8]
[1759363034631,0.71,221.84,221.78,15.78140498]
[1759363034925,0.71,221.83,221.78,15.78140498]
[1759363035427,7.86625201,221.85,221.78,15.78140498]
[1759363035630,0.71,221.83,221.78,15.78140498]
[1759363036230,0.71,221.83,221.78,11.27243213]
[1759363036636,0.71,221.82,221.75,4.50938454]
[1759363036929,0.71,221.81,221.75,4.50938454]
[1759363037128,0.71,221.8,221.75,4.50938454]
[1759363037622,0.71,221.83,221.76,0.65]
[1759363038934,0.71,221.83,221.74,0.65]
[1759363039513,0.71,221.83,221.76,20.8]
[1759363039810,0.71,221.83,221.77,4.50917617]
[1759363040004,0.71,221.83,221.77,15.7821166]
[1759363040232,0.71,221.82,221.77,4.50917617]
[1759363040431,0.71,221.81,221.77,4.50917617]
[1759363040617,5.88246743,221.84,221.77,4.50917617]
[1759363040817,0.71,221.8,221.77,4.50917617]
[1759363041204,0.7,221.8,221.77,4.50917617]
[1759363041632,5.88246743,221.84,221.77,4.50917617]
[1759363041927,0.7,221.83,221.77,4.50917617]
[1759363042109,0.7,221.82,221.77,4.50917617]
[1759363042304,0.7,221.81,221.77,4.50917617]
[1759363043409,8.56625201,221.85,221.78,0.68]
[1759363043730,8.56625201,221.85,221.77,36.5821166]
[1759363044031,0.69,221.84,221.77,36.5821166]
[1759363045028,33.27,221.84,221.77,36.5821166]
[1759363045227,32.58,221.84,221.77,15.7821166]
[1759363045426,0.69,221.83,221.77,15.7821166]
[1759363045629,32.56,221.82,221.77,15.7821166]
[1759363045826,33.25,221.82,221.77,15.7821166]
[1759363046535,0.69,221.81,221.77,15.7821166]
[1759363047516,0.69,221.81,221.77,11.27294043]
[1759363047929,32.54,221.82,221.77,11.27294043]
[1759363048328,33.23,221.82,221.77,11.27294043]
[1759363048576,0.69,221.82,221.77,16.4521166]
[1759363048741,0.69,221.82,221.77,15.7821166]
[1759363048924,0.69,221.81,221.77,15.7821166]
[1759363050242,7.86625201,221.85,221.78,0.67]
[1759363050409,41.07625201,221.85,221.78,0.67]
[1759363051132,42.45096404,221.85,221.78,0.67]
[1759363051635,32.52,221.84,221.78,0.67]
[1759363052011,32.52,221.84,221.76,4.5093795]
[1759363052012,1.37471203,221.82,221.76,4.5093795]
[1759363052212,2.06471203,221.82,221.76,4.5093795]
[1759363052436,1.37471203,221.84,221.77,0.67]
[1759363052626,32.52,221.83,221.77,0.67]
[1759363053718,33.21,221.84,221.78,15.78140498]
[1759363054036,0.69,221.83,221.78,15.78140498]
[1759363054225,0.69,221.82,221.78,15.78140498]
[1759363054423,0.69,221.81,221.78,15.78140498]
[1759363055235,0.69,221.81,221.78,11.27243213]
[1759363057544,32.48,221.83,221.78,11.27243213]
[1759363057842,0.69,221.82,221.78,11.27243213]
[1759363058047,32.48,221.83,221.78,11.27243213]
[1759363058254,0.69,221.82,221.78,11.27243213]
[1759363058458,7.86625201,221.85,221.79,0.67]
[1759363058664,32.46,221.83,221.79,0.67]
[1759363058861,40.32625201,221.85,221.79,0.67]
[1759363059160,43.16402949,221.85,221.78,11.27243213]
[1759363059349,0.69,221.84,221.78,15.78140498]
[1759363060546,40.30625201,221.85,221.79,0.67]
[1759363061442,40.30625201,221.85,221.8,15.77998195]
[1759363061640,0.69,221.84,221.81,2.14689802]
[1759363061952,7.86625201,221.85,221.83,2.14689802]
[1759363062125,7.86625201,221.85,221.84,2.14689802]
[1759363062322,7.86625201,221.85,221.83,2.14689802]
[1759363062526,8.55625201,221.85,221.8,15.77998195]
[1759363062837,8.55625201,221.85,221.81,2.14689802]
[1759363063042,0.69,221.84,221.8,17.92687997]
[1759363063234,0.69,221.84,221.8,15.77998195]
[1759363063442,0.69,221.84,221.8,11.27141568]
[1759363063654,2.83689802,221.83,221.76,2.14689802]
[1759363063836,2.14689802,221.83,221.76,2.14689802]
[1759363064042,0.69,221.82,221.76,2.14689802]
[1759363064247,0.69,221.82,221.77,2.14689802]
[1759363064448,0.69,221.81,221.77,2.14689802]
[1759363065352,0.69,221.81,221.78,2.14689802]
[1759363065551,8.55625201,221.85,221.79,6.65566757]
[1759363065733,40.99625201,221.85,221.8,2.14689802]
[1759363066062,8.55625201,221.85,221.82,2.14689802]
[1759363066233,7.86625201,221.85,221.83,2.14689802]
[1759363066551,7.86625201,221.85,221.82,2.14689802]
[1759363066751,8.55625201,221.85,221.8,0.67]
[1759363066945,8.55625201,221.85,221.82,2.14689802]
[1759363067146,7.86625201,221.85,221.82,2.14689802]
[1759363067456,7.86625201,221.85,221.84,2.14689802]
[1759363067626,7.86625201,221.85,221.84,6.65465135]
[1759363067827,7.86625201,221.85,221.84,7.32465135]
[1759363069063,7.86625201,221.85,221.84,4.50775333]
[1759363069235,7.86625201,221.85,221.84,6.65465135]
[1759363069849,7.86625201,221.85,221.82,11.27026485]
[1759363069850,8.55625201,221.85,221.82,20.8]
[1759363070051,0.69,221.84,221.82,20.8]
[1759363070663,0.69,221.84,221.8,4.50856627]
[1759363070956,0.69,221.83,221.8,4.50856627]
[1759363071257,0.69,221.82,221.78,4.50897285]
[1759363071438,0.69,221.81,221.78,4.50897285]
[1759363072956,0.69,221.83,221.79,2.14689802]
[1759363074257,0.69,221.83,221.8,4.50856627]
[1759363074935,7.86625201,221.85,221.81,2.14689802]
[1759363075256,0.7,221.84,221.8,4.50856627]
[1759363075454,2.84689802,221.83,221.8,4.50856627]
[1759363075661,0.7,221.82,221.8,4.50856627]
[1759363076155,0.7,221.81,221.8,4.50856627]
[1759363076361,0.7,221.81,221.78,4.50897285]
[1759363077749,0.7,221.81,221.78,6.65587087]
[1759363078255,0.7,221.83,221.8,4.50856627]
[1759363078455,7.86625201,221.85,221.8,15.77998195]
[1759363078657,0.7,221.84,221.81,2.14689802]
[1759363080045,0.7,221.84,221.82,4.50815976]
[1759363080250,7.86625201,221.85,221.82,4.50815976]
[1759363080558,7.86625201,221.85,221.83,2.14689802]
[1759363080981,7.86625201,221.85,221.84,2.14689802]
[1759363082345,7.86625201,221.85,221.84,6.65465135]
[1759363082758,7.86625201,221.85,221.84,7.32465135]
[1759363083063,7.86625201,221.85,221.84,5.17775333]
[1759363083263,7.86625201,221.85,221.84,7.32465135]
[1759363084963,0.02496359,221.89,221.84,18.59403468]
[1759363085165,0.02496359,221.89,221.88,2.14689802]
[1759363085348,0.02496359,221.89,221.88,34.42689802]
[1759363086539,0.02496359,221.89,221.88,38.9338387]
[1759363086740,22.97272142,221.9,221.88,4.50694068]
[1759363086950,22.97272142,221.9,221.89,34.46689802]
[1759363088347,22.97272142,221.9,221.89,34.44689802]
[1759363088760,22.97272142,221.9,221.89,38.95363559]
[1759363089062,22.97272142,221.9,221.87,32.06772523]
[1759363089063,23.67272142,221.9,221.87,4.50698029]
[1759363089272,23.67272142,221.9,221.88,32.28]
[1759363089440,22.97272142,221.9,221.89,2.14689802]
[1759363089768,400.5,222.0,221.91,20.8]
[1759363089938,400.5,222.0,221.92,32.95]
[1759363090139,400.5,222.0,221.98,2.14689802]
[1759363090338,401.2,222.0,221.98,15.49538111]
[1759363090751,401.2,222.0,221.99,4.50470741]
[1759363090950,401.2,222.0,221.98,17.85337003]
[1759363091162,401.2,222.0,221.97,2.14689802]
[1759363091354,0.7,221.99,221.98,32.34]
[1759363091664,0.7,221.99,221.93,11.26474235]
[1759363091843,0.7,221.98,221.94,32.34]
[1759363092164,400.5,222.0,221.95,32.34]
[1759363092359,0.7,221.97,221.95,34.48689802]
[1759363092762,400.5,222.0,221.96,6.65221429]
[1759363092976,0.7,221.99,221.96,4.50531627]
[1759363093261,0.7,221.98,221.96,4.50531627]
[1759363093447,400.5,222.0,221.96,4.50531627]
[1759363093448,400.5,222.0,221.97,2.14689802]
[1759363093653,401.2,222.0,221.98,2.14689802]
[1759363094863,401.2,222.0,221.99,36.82470741]
[1759363095052,271.05200322,222.0,221.99,50.51808064]
[1759363095257,45.53424256,222.0,221.99,57.59939894]
[1759363095456,0.7,222.11,222.02,20.8]
[1759363095658,0.7,222.11,222.09,2.14689802]
[1759363095862,32.48,222.16,222.09,2.14689802]
[1759363095863,0.7,222.14,222.09,4.29379604]
[1759363096171,0.7,222.18,222.09,4.29379604]
[1759363096375,0.7,222.17,222.08,32.62]
[1759363096672,31.98,222.16,222.11,2.14689802]
[1759363096853,0.7,222.15,222.14,2.14689802]
[1759363098257,13.08987242,222.2,222.14,2.14689802]
[1759363098454,0.7,222.19,222.17,2.14689802]
[1759363098670,0.7,222.19,222.13,4.5018252]
[1759363098671,0.7,222.18,222.15,2.14689802]
[1759363098972,12.38987242,222.2,222.15,4.50131032]
[1759363098973,0.7,222.17,222.15,4.50131032]
[1759363099155,12.38987242,222.2,222.15,6.64820834]
[1759363099354,0.7,222.19,222.17,2.14689802]
[1759363099873,0.7,222.18,222.17,2.14689802]
[1759363100075,0.7,222.18,222.15,15.75496775]
[1759363100276,0.7,222.18,222.17,2.14689802]
[1759363101051,0.7,222.18,222.17,6.64795576]
[1759363101251,12.38987242,222.2,222.17,6.64795576]
[1759363101775,0.67,222.19,222.17,15.75370211]
[1759363101969,0.67,222.19,222.18,2.14689802]
[1759363103054,0.67,222.19,222.17,2.14689802]
[1759363103254,12.38987242,222.2,222.17,2.14689802]
[1759363103255,0.67,222.18,222.17,2.14689802]
[1759363103587,0.67,222.18,222.14,20.8]
[1759363103758,0.67,222.18,222.16,2.14689802]
[1759363103958,12.38987242,222.2,222.16,2.14689802]
[1759363104279,13.05987242,222.2,222.18,2.14689802]
[1759363104859,12.38987242,222.2,222.18,2.14689802]
[1759363105065,0.67,222.19,222.18,6.64775318]
[1759363105378,13.05987242,222.2,222.18,6.64775318]
[1759363105552,0.67,222.19,222.18,6.64775318]
[1759363106279,0.67,222.19,222.18,4.50085516]
[1759363106481,0.67,222.19,222.18,6.64775318]
[1759363106784,12.38987242,222.2,222.16,11.25307803]
[1759363107078,13.05987242,222.2,222.16,11.25307803]
[1759363108080,12.38987242,222.2,222.16,11.25307803]
[1759363108877,13.05987242,222.2,222.16,11.25307803]
[1759363109060,12.38987242,222.2,222.16,11.25307803]
[1759363109887,12.38987242,222.2,222.16,15.75433838]
[1759363110183,4.49847212,222.3,222.16,15.75433838]
[1759363110184,0.67,222.28,222.17,10.87647521]
[1759363110357,0.67,222.28,222.16,48.35433838]
[1759363110554,0.67,222.27,222.16,48.35433838]
[1759363110757,0.67,222.27,222.17,32.62]
[1759363110959,32.62,222.3,222.17,32.62]
[1759363111160,0.67,222.29,222.17,32.62]
[1759363111370,0.67,222.28,222.17,32.62]
[1759363111582,0.67,222.27,222.17,32.62]
[1759363111778,0.67,222.26,222.17,32.62]
[1759363112091,0.67,222.26,222.18,15.75299306]
[1759363112276,0.67,222.26,222.19,13.4]
[1759363112483,0.67,222.26,222.18,15.75299306]
[1759363114489,0.67,222.25,222.18,15.75299306]
[1759363114883,7.81072069,222.35,222.18,15.75299306]
[1759363115184,0.67,222.3,222.18,36.55299306]
[1759363115390,2.81002703,222.29,222.18,36.55299306]
[1759363115699,0.67,222.28,222.19,3.19521627]
[1759363115901,0.67,222.27,222.2,3.19521627]
[1759363116135,0.67,222.27,222.21,7.69546378]
[1759363116308,0.67,222.28,222.22,3.19521627]
[1759363116496,0.67,222.28,222.21,15.75086629]
[1759363117187,0.67,222.28,222.22,13.4]
[1759363117386,0.67,222.28,222.21,15.75086629]
[1759363118104,0.67,222.28,222.21,11.25061878]
[1759363118472,32.68,222.31,222.21,11.25061878]
[1759363118677,0.67,222.3,222.21,11.25061878]
[1759363118890,0.67,222.29,222.21,11.25061878]
[1759363119993,0.67,222.28,222.21,11.25061878]
[1759363120579,33.39,222.31,222.21,11.25061878]
[1759363120980,0.67,222.31,222.21,11.25061878]
[1759363122377,0.67,222.31,222.24,15.74874009]
[1759363123299,0.67,222.3,222.24,15.74874009]
[1759363123477,7.81072069,222.35,222.24,15.74874009]
[1759363123676,0.67,222.34,222.24,15.74874009]
[1759363123894,0.67,222.33,222.24,15.74874009]
[1759363124095,0.67,222.32,222.24,15.74874009]
[1759363124297,0.67,222.32,222.24,11.24910007]
[1759363124486,0.67,222.31,222.24,18.87049403]
[1759363124688,7.81072069,222.35,222.24,11.24910007]
[1759363124689,0.67,222.3,222.24,11.24910007]
[1759363125299,0.104,222.42,222.28,10.87647521]
[1759363125488,0.67,222.4,222.32,20.8]
[1759363125682,0.67,222.4,222.31,20.8]
[1759363125892,0.104,222.42,222.31,20.8]
[1759363126490,0.104,222.42,222.32,15.74307304]
[1759363126686,0.67,222.4,222.32,15.74307304]
[1759363126885,0.67,222.39,222.32,29.16426028]
[1759363127089,0.67,222.38,222.32,17.91920811]
[1759363127399,0.1,222.41,222.33,13.4]
[1759363127602,0.67,222.4,222.33,13.4]
[1759363127802,0.67,222.39,222.33,13.4]
[1759363127980,0.67,222.38,222.33,13.4]
[1759363128185,0.67,222.37,222.33,13.4]
[1759363128387,1.65324447,222.4,222.32,17.91920811]
[1759363128388,0.67,222.36,222.32,17.91920811]
[1759363128684,1.36892133,222.34,222.26,11.24807729]
[1759363128892,2.03892133,222.33,222.23,11.24940174]
[1759363129190,0.67,222.36,222.26,20.8]
[1759363129393,24.77,222.4,222.26,20.8]
[1759363129602,24.77,222.4,222.27,20.8]
[1759363129799,0.95432314,222.4,222.27,20.8]
[1759363130011,34.48892133,222.39,222.27,20.8]
[1759363130209,35.15892133,222.39,222.27,20.8]
[1759363130513,0.67,222.38,222.28,15.74590606]
[1759363130896,25.25892133,222.4,222.28,15.74590606]
[1759363131313,0.67,222.39,222.28,15.74590606]
[1759363131485,0.67,222.39,222.28,38.24005758]
[1759363131806,1.46892133,222.41,222.31,20.8]
[1759363131989,0.1,222.41,222.31,20.8]
[1759363132386,0.1,222.41,222.34,15.74165691]